Cogmind - Beta 10.2 @@@ ROGUE MODE // 2022.01.19 @ 10:14:25 Player: Sara Result: Destroyed by Y-64 Sentinel with Wave Gun Performance ------------- Evolutions (5) 2500 Regions Visited (12) 2400 Robots Destroyed (172) 860 Value Destroyed (6796) 6796 Prototype IDs (39) 780 Alien Tech Used (0) 0 Bonus (5136) 5136 TOTAL SCORE: 18472 Bonus ------- Triggered High Security 500 High Alert Combat Kills 2705 Follower Combat Kills 1189 Aligned with FarCom 300 A7 Reached Mainframe 300 Met R17 at Cetus 500 Friendly Fire -358 Cogmind --------- Core Integrity 0/1000 Matter 252/300 Energy 170/170 System Corruption 15% Temperature Cool (9) Movement Treading (160) Location -5/Factory Parts ------- > --- POWER (2) -------- Micro Fission Core > --- PROPULSION (6) --- Heavy Treads Cesium-ion Thruster > --- UTILITY (6) ------ Layered Light Armor Plating Layered Medium Armor Plating > --- WEAPON (3) ------- (None) > --- INVENTORY (4) ---- Heavy Machine Gun Peak State ------------ > --- POWER ------------ Fusion Reactor Fusion Reactor > --- PROPULSION ------- Heavy Treads Centrium Heavy Treads Centrium Heavy Treads > --- UTILITY ---------- Advanced Heat Sink Lightpack 2.0 Advanced Targeting Computer Centrium Medium Armor Plating Centrium Medium Armor Plating > --- WEAPON ----------- Advanced Variable Charge Gun Improved KE Penetrator Improved KE Penetrator > --- INVENTORY -------- Improved Deuterium Engine Neutrino Core Quantum Reactor Improved Treads Improved Treads Medium Treads Centrium Heavy Treads Improved Heat Sink Advanced Energy Well Kinecellerator Advanced Weapon Cycler Hacking Suite System Shield Phase Cannon Advanced Assault Cannon Mini Assault Cannon Bore Cannon Improved Datajack Ripper Ripper [Rating: 142] Favorites ----------- Power Antimatter Reactor Engine Light Ion Engine Power Core Neutrino Core Reactor Antimatter Reactor Propulsion Heavy Treads Treads Heavy Treads Leg Aluminum Leg Hover Unit Improved Hover Unit Flight Unit Flight Unit Utility Lightpack 2.0 Device Improved Cooling System Storage Lightpack 2.0 Processor Advanced Targeting Computer Hackware Hacking Suite Protection Hardened Medium Armor Plating Weapon Improved KE Penetrator Energy Gun Advanced Variable Charge Gun Energy Cannon HERF Cannon Ballistic Gun Improved KE Penetrator Ballistic Cannon Mini Assault Cannon Slashing Weapon Ripper Special Melee Weapon Improved Datajack Build | -11 -10 -10 -10 -9 -8 -7 -6 -6 -6 -6 -6 -5 ------- Run | Scr Mat Min Exi Min Mat Fac Fac Was Fac Ext Cet Fac Slots Evolved 10 | . . . . . 4 2 2 . . . . 2 Power 1 | . . . . . . . 1 . . . . . Propulsion 4 | . . . . . 2 . 1 . . . . 1 Utility 4 | . . . . . 2 2 . . . . . . Weapon 1 | . . . . . . . . . . . . 1 Parts Attached 145 | 1 7 2 1 2 27 11 6 11 1 11 17 48 Power 19 | . . . . . 3 3 3 3 1 . 2 4 Engine 3 | . . . . . 1 1 1 . . . . . Core 9 | . . . . . 2 2 2 1 1 . . 1 Reactor 7 | . . . . . . . . 2 . . 2 3 Propulsion 40 | . 2 1 . 2 11 . 3 2 . 2 3 14 Treads 19 | . . . . . 3 . . 2 . 2 3 9 Leg . | . . . . . . . . . . . . . Wheel . | . . . . . . . . . . . . . Hover 4 | . 2 1 . . 1 . . . . . . . Flight 17 | . . . . 2 7 . 3 . . . . 5 Utility 37 | 1 1 . 1 . 4 3 . 3 . 2 4 18 Device 12 | 1 . . . . 2 . . 1 . . . 8 Storage 4 | . 1 . 1 . . . . . . 1 . 1 Processor 5 | . . . . . 1 3 . . . . . 1 Hackware 1 | . . . . . 1 . . . . . . . Protection 15 | . . . . . . . . 2 . 1 4 8 Artifact . | . . . . . . . . . . . . . Weapon 49 | . 4 1 . . 9 5 . 3 . 7 8 12 Energy Gun 10 | . 3 . . . 2 1 . . . . 1 3 Energy Cannon 7 | . . . . . . . . 3 . 2 1 1 Ballistic Gun 16 | . 1 1 . . 6 1 . . . . 5 2 Ballistic Cannon 10 | . . . . . 1 2 . . . 2 1 4 Launcher . | . . . . . . . . . . . . . Special Weapon . | . . . . . . . . . . . . . Impact Weapon . | . . . . . . . . . . . . . Slashing Weapon 4 | . . . . . . . . . . 2 . 2 Piercing Weapon . | . . . . . . . . . . . . . Special Melee Weapon 2 | . . . . . . 1 . . . 1 . . Unidentified Prototypes 12 | . . . . . 1 3 . . . 1 4 3 Parts Lost 46 | . . . . 3 10 . . 1 . . 3 29 Power 5 | . . . . 1 . . . . . . 1 3 Propulsion 20 | . . . . 2 5 . . . . . 1 12 Utility 10 | . . . . . 1 . . . . . 1 8 Weapon 11 | . . . . . 4 . . 1 . . . 6 Highest Loss Streak 9 | . . . . 3 5 . . 1 . . 1 9 Average Slot Usage (%) 78 | . 99 100 93 76 80 85 83 68 73 77 79 70 Engine 2 | . 14 14 14 9 1 . 3 . . . . . Core 3 | . . . . . 6 6 9 7 6 6 3 . Reactor 5 | . . . . . . . . 4 6 6 8 9 Treads 11 | . . . . . 3 . . 10 13 17 20 16 Hover 3 | . 14 28 28 21 1 . . . . . . . Flight 4 | . . . . 5 29 30 33 4 . . . . Device 6 | . 14 14 8 . 7 7 6 5 6 6 5 6 Storage 7 | . 14 14 14 14 9 7 6 6 6 6 6 5 Processor 5 | . . . . . 5 21 20 9 6 6 6 4 Protection 7 | . . . . . . . . 9 13 13 13 7 Energy Gun 2 | . 20 . . . 1 . . . . . . 2 Energy Cannon 2 | . . . . . . . . 7 13 5 . . Ballistic Gun 7 | . 7 28 28 26 9 2 . . . . 11 8 Ballistic Cannon 1 | . . . . . 2 6 3 . . 3 . 2 Naked Turns . | . . . . . . . . . . . . . Heaviest Build 79 | 10 26 26 26 14 19 16 21 75 75 75 74 79 Greatest Support 240 | 20 20 16 16 16 40 16 22 140 140 168 178 240 Greatest Overweight (x) 6 | . 4 1 1 3 2 3 . 6 . . . 2 Average Overweight (x) . | . . 1 . . . . . . . . . . Largest Inventory Capacity 24 | 6 10 10 24 24 24 24 24 24 24 24 24 24 Average Capacity 21 | 6 7 10 15 24 24 24 24 24 24 24 24 23 Most Carried 24 | 6 10 10 14 24 24 24 24 24 24 24 24 24 Average Carried 20 | 5 6 9 10 15 21 23 23 23 24 23 23 22 Final Capacity 24 | 6 10 10 24 24 24 24 24 24 24 24 24 4 Final Carried 24 | 6 10 10 14 24 22 24 24 24 24 24 24 1 Class Distribution -------------------- 27% | Scavenger-Mutant 24% | Hauler-Mutant 14% | Mutant 11% | Commander-Mutant 8% | Scavenger-Scout 5% | Scavenger-Skirmisher 4% | Scavenger-Tank Dominant Class ---------------- Mutant | -10/Materials Mutant | -10/Mines Mutant | -10/Exiles Hauler-Mutant | -9/Mines Scavenger-Mutant | -8/Materials Scavenger-Scout | -7/Factory Scavenger-Scout | -6/Factory Hauler-Mutant | -6/Waste Hauler-Mutant | -6/Factory Commander-Mutant | -6/Extension Scavenger-Mutant | -6/Cetus Scavenger-Mutant | -5/Factory Resources | -11 -10 -10 -10 -9 -8 -7 -6 -6 -6 -6 -6 -5 ----------- Run | Scr Mat Min Exi Min Mat Fac Fac Was Fac Ext Cet Fac Matter Collected 5028 | 232 99 132 10 66 491 . . 321 . 472 663 2542 Remotely . | . . . . . . . . . . . . . Salvage Created 8061 | 207 266 281 . 66 714 . . 297 . 659 1308 4263 Parts 379 | 9 23 12 . 12 54 . . 4 . 24 52 189 Haulers Intercepted 5 | . . . . . 1 . . . . . . 4 Recyclers Shooed 6 | . . . . . . . . . . . . 6 Parts Field Recycled . | . . . . . . . . . . . . . Retrieved Matter . | . . . . . . . . . . . . . Parts Self-Destructed . | . . . . . . . . . . . . . Prevented . | . . . . . . . . . . . . . Kills | -11 -10 -10 -10 -9 -8 -7 -6 -6 -6 -6 -6 -5 ------- Run | Scr Mat Min Exi Min Mat Fac Fac Was Fac Ext Cet Fac Combat Hostiles Destroyed 129 | . 6 4 . 4 13 . . . . 11 22 69 Melee 1 | . . . . . . . . . . 1 . . Guns 86 | . 6 4 . 4 11 . . . . . 20 41 Cannons 35 | . . . . . 2 . . . . 10 . 23 AOE 5 | . . . . . . . . . . . . 5 Classes Destroyed 16 | 2 4 . . . 5 . . . . . 2 3 Worker 9 | . 2 . . . 1 . . . . . . 6 Builder 4 | . . . . . 1 . . . . 1 . 2 Tunneler 10 | 6 1 1 . . 1 . . . . . . 1 Hauler 5 | . . . . . 1 . . . . . . 4 Recycler 6 | 1 . 1 . . 1 . . . . . . 3 Carrier 1 | . . . . . . . . . . . 1 . Operator 2 | . 1 1 . . . . . . . . . . Watcher 4 | . . . . . 1 . . . . . 1 2 Swarmer 32 | . 3 1 . 4 4 . . . . . 8 12 Saboteur 3 | . . . . . . . . . . . . 3 Grunt 56 | . 3 3 . . 5 . . . . 7 7 31 Brawler 2 | . . . . . . . . . . . 2 . Duelist 2 | . . . . . . . . . . . . 2 Sentry 12 | . . . . . 3 . . . . 4 . 5 Hunter 7 | . . . . . 1 . . . . . . 6 Programmer 10 | . . . . . . . . . . . . 10 Cetus Guard 5 | . . . . . . . . . . . 5 . Thug 2 | . . . . . . . . . . 1 1 . Best Kill Streak 18 | 4 4 3 . 4 5 . . . . 2 6 18 Combat Bots Only 11 | . 3 2 . 4 5 . . . . 2 6 11 Max Kills in Single Turn 4 | 1 1 2 . 1 1 . . . . 1 2 4 Gunslinging 1 | . . . . . . . . . . . 1 1 Exploded 2 | . . . . . . . . . . . . 2 Melee 1 | . . . . . . . . . . 1 . . Uniques/NPCs Destroyed . | . . . . . . . . . . . . . Combat | -11 -10 -10 -10 -9 -8 -7 -6 -6 -6 -6 -6 -5 -------- Run | Scr Mat Min Exi Min Mat Fac Fac Was Fac Ext Cet Fac Damage Taken 13089 | . 215 154 . 179 966 31 . 86 . 814 1865 8779 Core 1474 | . 54 18 . 28 211 . . . . 59 91 1013 Absorbed by Shields 202 | . . . . . . . . . . 9 193 . Reduced by Siege Mode 678 | . . . . . . . . . . 25 136 517 Core Remaining (%) 80 | 100 . . . 60 61 100 . . . . 82 . Volleys Fired 440 | 16 24 14 . 10 65 4 . 2 . 32 61 212 Largest 3 | 2 2 2 . 2 2 1 . 2 . 2 2 3 Hottest 178 | 40 90 46 . 46 100 48 . 176 . 178 136 175 Shots Fired 914 | 32 48 28 . 20 104 4 . 4 . 63 122 489 Gun 660 | 32 48 28 . 20 94 . . . . . 104 334 Cannon 254 | . . . . . 10 4 . 4 . 63 18 155 Launcher . | . . . . . . . . . . . . . Special . | . . . . . . . . . . . . . Kinetic 799 | 32 19 28 . 20 82 4 . . . 42 113 459 Thermal 48 | . 19 . . . . . . . . 9 . 20 Explosive . | . . . . . . . . . . . . . Electromagnetic 67 | . 10 . . . 22 . . 4 . 12 9 10 Robot Hit Streak 58 | 9 7 9 . 2 8 . . 4 . 11 28 58 Robot Miss Streak 6 | 2 4 5 . 2 6 3 . . . 2 2 4 Penetration Max 1 | . . . . . . . . . . . 1 1 Secondary Targets 15 | . . 1 . . 2 . . . . . 5 7 Max Gunslinging Chain 1 | . . 1 . . 1 . . . . . 1 1 Shots Hit Robots 681 | 22 28 17 . 8 69 2 . 4 . 46 94 391 Core Hits 312 | 12 13 10 . 4 41 . . . . 20 42 170 Critical Hits 65 | . . 1 . . 1 . . . . 2 14 47 Critical Kills 27 | . . 1 . . . . . . . 1 8 17 Critical Parts Destroyed 34 | . . . . . 1 . . . . 1 5 27 Melee Attacks 19 | . . . . . . 2 . . . 17 . . Impact . | . . . . . . . . . . . . . Slashing 13 | . . . . . . . . . . 13 . . Piercing . | . . . . . . . . . . . . . Sneak Attacks 6 | . . . . . . 2 . . . 4 . . Combat Hostiles 1 | . . . . . . 1 . . . . . . Follow-up Attacks 1 | . . . . . . . . . . 1 . . Damage Inflicted 17649 | 203 337 355 . 142 974 . . 129 . 1378 2547 11584 Guns 11426 | 203 337 355 . 142 836 . . . . . 2040 7513 Cannons 5177 | . . . . . 138 . . 129 . 1288 507 3115 Explosions 953 | . . . . . . . . . . . . 953 Melee 90 | . . . . . . . . . . 90 . . Ramming 3 | . . . . . . . . . . . . 3 Kinetic 14682 | 203 106 355 . 142 762 . . . . 837 2256 10021 Thermal 1643 | . 148 . . . . . . . . 158 . 1337 Explosive . | . . . . . . . . . . . . . Electromagnetic 1231 | . 83 . . . 212 . . 129 . 293 291 223 Impact . | . . . . . . . . . . . . . Slashing 90 | . . . . . . . . . . 90 . . Piercing . | . . . . . . . . . . . . . Highest Corruption 15 | . . . . . . . . . 3 5 5 15 Average Corruption 6 | . . . . . . . . . 2 3 5 9 Corruption Purged . | . . . . . . . . . . . . . Effects 228 | . . . . . . . . . 1 43 30 154 Message Errors 34 | . . . . . . . . . . 16 3 15 Matter Fused 31 | . . . . . . . . . 1 9 5 16 Heat Flow Errors 18 | . . . . . . . . . . 3 8 7 Energy Discharges 20 | . . . . . . . . . . 6 5 9 Parts Rejected 6 | . . . . . . . . . . . 1 5 Data Loss (minor) 24 | . . . . . . . . . . 7 5 12 Data Loss (major) 6 | . . . . . . . . . . . 2 4 Misfires 5 | . . . . . . . . . . . . 5 Alerts 1 | . . . . . . . . . . . . 1 Misdirections 16 | . . . . . . . . . . . . 16 Targeting Errors 59 | . . . . . . . . . . 1 1 57 Weapon Failures 8 | . . . . . . . . . . 1 . 7 Overload Shots . | . . . . . . . . . . . . . Overflow Damage 257 | . . . . . . . . . . 48 . 209 Projectiles 122 | . . . . . . . . . . 48 . 74 Explosions 135 | . . . . . . . . . . . . 135 Melee . | . . . . . . . . . . . . . Knockbacks 39 | . . . . . 4 . . . . 3 . 32 Impact . | . . . . . . . . . . . . . Kinetic 36 | . . . . . 4 . . . . 3 . 29 Secondary 3 | . . . . . . . . . . . . 3 Self-Inflicted Damage . | . . . . . . . . . . . . . Shots . | . . . . . . . . . . . . . Rammed 3 | . . . . . . . . . . . . 3 Targets Rammed 3 | . . . . . . . . . . . . 3 Kicked . | . . . . . . . . . . . . . Crushed . | . . . . . . . . . . . . . Highest Temperature 351 | . 76 54 . . 208 2 18 63 . 242 254 351 Average Temperature 69 | . 30 19 . . 67 1 8 19 . 86 108 80 Received Heat Transfer 2692 | . 75 66 . 18 288 18 . . . 264 289 1674 Effects 4 | . . . . . 2 . . . . . . 2 Shutdowns 1 | . . . . . . . . . . . . 1 Interference 3 | . . . . . 2 . . . . . . 1 Siege Activations 23 | . . . . . . . . . . 1 8 14 Total Turns 630 | . . . . . . . . . . 38 174 418 Longest Duration 89 | . . . . . . . . . . 38 53 89 Robots Corrupted 3 | . . . . . . . . 1 . . 2 . Combat Hostiles 3 | . . . . . . . . 1 . . 2 . Parts Fried 9 | . . . . . . . . 2 . 3 4 . Impact Corruptions . | . . . . . . . . . . . . . Robots Melted . | . . . . . . . . . . . . . Combat Hostiles . | . . . . . . . . . . . . . Parts Melted 2 | . . . . . . . . . . . . 2 Heat Transferred 1739 | . 325 . . . . . . . . 185 . 1229 Parts Sabotaged 3 | . . . . . . . . . . . . 3 Parts Stolen . | . . . . . . . . . . . . . Parts Stripped . | . . . . . . . . . . . . . Power Chain Reactions . | . . . . . . . . . . . . . Missiles Intercepted . | . . . . . . . . . . . . . Alert | -11 -10 -10 -10 -9 -8 -7 -6 -6 -6 -6 -6 -5 ------- Run | Scr Mat Min Exi Min Mat Fac Fac Was Fac Ext Cet Fac Peak Influence 2883 | 35 251 219 . 120 250 70 . 1 80 663 626 2883 Initial 350 | . 22 25 . . 46 47 . . . 39 169 350 Average 521 | 20 102 92 . 55 71 48 . . 17 376 418 1324 Maximum Alert Level 5 | . 1 1 . . 1 . . . . 2 2 5 Low Security (%) 42 | 100 91 83 . 100 92 100 100 100 100 6 16 . Level 1 18 | . 8 16 . . 7 . . . . 50 20 15 Level 2 22 | . . . . . . . . . . 42 63 26 Level 3 1 | . . . . . . . . . . . . 3 Level 4 5 | . . . . . . . . . . . . 17 Level 5 8 | . . . . . . . . . . . . 28 High Security 2 | . . . . . . . . . . . . 8 Max Security . | . . . . . . . . . . . . . Squads Dispatched 40 | . 1 . . . 2 2 . . . 4 1 30 Investigation 6 | . . . . . . . . . . 2 1 3 Extermination 6 | . . . . . . 1 . . . . . 5 Reinforcement 10 | . 1 . . . 2 1 . . . 2 . 4 Assault 13 | . . . . . . . . . . . . 13 Garrison 5 | . . . . . . . . . . . . 5 Intercept . | . . . . . . . . . . . . . Construction Impeded 3 | . . . . . 1 . . . . 2 . . Haulers Reinforced 2 | . . . . . . . . . . . . 2 Stealth | -11 -10 -10 -10 -9 -8 -7 -6 -6 -6 -6 -6 -5 --------- Run | Scr Mat Min Exi Min Mat Fac Fac Was Fac Ext Cet Fac Distress Signals 13 | . 1 . . . 1 . . . . 1 3 7 Communications Jammed . | . . . . . . . . . . . . . Distress Signals . | . . . . . . . . . . . . . Times Spotted 262 | . 8 7 . 8 20 7 . 2 1 29 38 142 Peak Tracking Total 17 | . 3 2 . 4 8 5 . 1 1 5 6 17 Tactical Retreats 32 | . . . . 2 1 . . . . 2 4 23 Traps | -11 -10 -10 -10 -9 -8 -7 -6 -6 -6 -6 -6 -5 ------- Run | Scr Mat Min Exi Min Mat Fac Fac Was Fac Ext Cet Fac Traps Triggered 9 | . . . . . . . 3 . 2 . . 4 Indirectly 3 | . . . . . . . . . . . . 3 Trap Hack Attempts 1 | . . . . . . . . . . 1 . . Triggered . | . . . . . . . . . . . . . Disarmed . | . . . . . . . . . . . . . Reprogrammed . | . . . . . . . . . . . . . Reused . | . . . . . . . . . . . . . Traps Extracted . | . . . . . . . . . . . . . Installed . | . . . . . . . . . . . . . Triggered 2 | . . . . . . . . . . . . 2 Machines | -11 -10 -10 -10 -9 -8 -7 -6 -6 -6 -6 -6 -5 ---------- Run | Scr Mat Min Exi Min Mat Fac Fac Was Fac Ext Cet Fac Machines Disabled 33 | . . . . . . . . . . 5 4 24 Max in Single Turn 7 | . . . . . . . . . . 1 1 7 Garrison Access 2 | . . . . . . . . . . . . 2 Machines Sabotaged . | . . . . . . . . . . . . . Garrisons Compromised . | . . . . . . . . . . . . . Overloaded Fab Kills . | . . . . . . . . . . . . . Fab Network Shutdowns . | . . . . . . . . . . . . . Hacking | -11 -10 -10 -10 -9 -8 -7 -6 -6 -6 -6 -6 -5 --------- Run | Scr Mat Min Exi Min Mat Fac Fac Was Fac Ext Cet Fac Machines Accessed 29 | . 3 . 2 . 4 1 1 . 3 5 3 7 Terminals 21 | . 3 . . . 3 1 . . 2 5 3 4 Fabricators 1 | . . . . . . . . . . . . 1 Repair Stations 1 | . . . . . . . . . 1 . . . Recycling Units 2 | . . . . . 1 . 1 . . . . . Scanalyzers . | . . . . . . . . . . . . . Garrison Access 2 | . . . . . . . . . . . . 2 Total Hacks 56 | . 9 . 5 . 8 2 1 . 5 10 8 8 Successful 30 | . 7 . 5 . 4 . . . 2 3 4 5 Failed 26 | . 2 . . . 4 2 1 . 3 7 4 3 Catastrophic 8 | . . . . . 2 . 1 . 1 1 2 1 Database Lockouts . | . . . . . . . . . . . . . Manual 28 | . 8 . 1 . 7 2 1 . 3 . 1 5 Terminals 44 | . 9 . . . 6 2 . . 4 10 8 5 Fabricators 1 | . . . . . . . . . . . . 1 Repair Stations 1 | . . . . . . . . . 1 . . . Recycling Units 3 | . . . . . 2 . 1 . . . . . Scanalyzers . | . . . . . . . . . . . . . Garrison Access 2 | . . . . . . . . . . . . 2 Terminal Hacks 21 | . 4 . 5 . 2 . . . 1 3 4 2 Record 7 | . . . 4 . . . . . . . 3 . Robot Analysis 6 | . 3 . . . 1 . . . . . . 2 Open Door 5 | . . . . . . . . . 1 3 1 . Terminal Index 2 | . 1 . . . 1 . . . . . . . EX-Prototype ID Bank 1 | . . . 1 . . . . . . . . . Fabricator Hacks 1 | . . . . . . . . . . . . 1 Network Status 1 | . . . . . . . . . . . . 1 Repair Station Hacks . | . . . . . . . . . . . . . Recycling Unit Hacks 1 | . . . . . 1 . . . . . . . Retrieve Components 1 | . . . . . 1 . . . . . . . Scanalyzer . | . . . . . . . . . . . . . Garrison Access Hacks . | . . . . . . . . . . . . . Unauthorized Hacks 7 | . 3 . . . 1 . . . 1 . . 2 Terminals 4 | . 3 . . . . . . . 1 . . . Track 1 | . 1 . . . . . . . . . . . Assimilate 1 | . 1 . . . . . . . . . . . Operators 2 | . 1 . . . . . . . 1 . . . Fabricators . | . . . . . . . . . . . . . Repair Stations . | . . . . . . . . . . . . . Recycling Units 1 | . . . . . 1 . . . . . . . Reject 1 | . . . . . 1 . . . . . . . Scanalyzers . | . . . . . . . . . . . . . Garrison Access 2 | . . . . . . . . . . . . 2 Jam 2 | . . . . . . . . . . . . 2 Data Cores Recovered . | . . . . . . . . . . . . . Used . | . . . . . . . . . . . . . Hacking Detections 18 | . 3 . . . 4 1 1 . 3 2 1 3 Full Trace Events 3 | . . . . . . . . . . 2 1 . Feedback Events . | . . . . . . . . . . . . . Feedback Blocked . | . . . . . . . . . . . . . Robot Schematics Acquired . | . . . . . . . . . . . . . Robots Built . | . . . . . . . . . . . . . Matter . | . . . . . . . . . . . . . Time . | . . . . . . . . . . . . . Total Robot Build Rating . | . . . . . . . . . . . . . Part Schematics Acquired . | . . . . . . . . . . . . . Parts Built . | . . . . . . . . . . . . . Matter . | . . . . . . . . . . . . . Time . | . . . . . . . . . . . . . Total Part Build Rating . | . . . . . . . . . . . . . Parts Repaired . | . . . . . . . . . . . . . Time . | . . . . . . . . . . . . . Parts Recycled . | . . . . . . . . . . . . . Recycled Matter . | . . . . . . . . . . . . . Retrieved Matter . | . . . . . . . . . . . . . Retrieved Components 10 | . . . . . 10 . . . . . . . Parts Scanalyzed . | . . . . . . . . . . . . . Part Schematics Acquired . | . . . . . . . . . . . . . Parts Damaged . | . . . . . . . . . . . . . Bothacking | -11 -10 -10 -10 -9 -8 -7 -6 -6 -6 -6 -6 -5 ------------ Run | Scr Mat Min Exi Min Mat Fac Fac Was Fac Ext Cet Fac Used RIF Installer . | . . . . . . . . . . . . . Robots Hacked 3 | . . . . . . 1 . . . 2 . . Non-combat 2 | . . . . . . 1 . . . 1 . . Combat 1 | . . . . . . . . . . 1 . . Robot Hacks Applied 4 | . . . . . . 1 . . . 3 . . parse_system 4 | . . . . . . 1 . . . 3 . . Relay Couplers Released 3 | . . . . . . . . . . . . 3 Machine Destruction 3 | . . . . . . . . . . . . 3 Robots Rewired 11 | . . . . . . 1 . . . 9 . 1 Allies Hacked 1 | . . . . . . . . . . . . 1 Hacks Repelled . | . . . . . . . . . . . . . Allies | -11 -10 -10 -10 -9 -8 -7 -6 -6 -6 -6 -6 -5 -------- Run | Scr Mat Min Exi Min Mat Fac Fac Was Fac Ext Cet Fac Total Allies 41 | . 1 2 . 3 . 1 . 20 . 13 . 1 Largest Group 20 | . 1 3 2 3 3 1 . 20 12 10 9 1 Highest-Rated Group 722 | . 10 51 41 40 40 37 . 722 509 417 376 29 Highest-Rated Ally 156 | . 10 31 31 16 16 37 . 50 50 156 156 29 Total Orders 1 | . . . . . 1 . . . . . . . ROAM 1 | . . . . . 1 . . . . . . . Ally Attacks 222 | . . 5 . . 8 . . 21 7 118 61 2 Total Damage 6589 | . . 85 . . 65 . . 1537 147 3352 1378 25 Kills 41 | . . 3 . . 1 . . 7 2 18 10 . Allies Corrupted 1 | . . . . . . . . . 1 . . . Allies Melted . | . . . . . . . . . . . . . Intel | -11 -10 -10 -10 -9 -8 -7 -6 -6 -6 -6 -6 -5 ------- Run | Scr Mat Min Exi Min Mat Fac Fac Was Fac Ext Cet Fac Robot Analysis Total 6 | . 3 . . . 1 . . . . . . 2 Derelict Logs Recovered 2 | . . 1 . 1 . . . . . . . . Drone Launches . | . . . . . . . . . . . . . Drone Recoveries . | . . . . . . . . . . . . . Exploration | -11 -10 -10 -10 -9 -8 -7 -6 -6 -6 -6 -6 -5 ------------- Run | Scr Mat Min Exi Min Mat Fac Fac Was Fac Ext Cet Fac Turns Passed 11003 | 236 667 583 236 211 967 405 136 874 378 2179 1002 3129 Spaces Moved 7306 | 67 541 440 276 282 532 695 135 835 212 1155 421 1715 Core 7 | . 2 . . 1 . 1 . 1 . . . 2 Treads 3490 | . . . . . 48 . . 431 212 1155 421 1223 Legs 259 | 67 192 . . . . . . . . . . . Wheels . | . . . . . . . . . . . . . Hover 1294 | . 347 440 276 227 4 . . . . . . . Flight 2256 | . . . . 54 480 694 135 403 . . . 490 Fastest Speed 28 | 120 56 116 56 37 31 31 28 28 160 160 160 34 Average Speed 109 | 120 99 116 81 54 77 31 28 96 160 160 160 125 Slowest Speed 350 | 120 250 116 116 200 240 200 28 350 160 160 160 180 Overloaded Moves . | . . . . . . . . . . . . . Propulsion Burnouts . | . . . . . . . . . . . . . Robots Hopped 18 | . . . . . 3 11 . 1 . . . 3 Cave-ins Triggered . | . . . . . . . . . . . . . Exploration Rate (%) 48 | 4 41 80 62 57 45 22 3 96 5 79 88 51 Regions Visited 12 Branch Regions 5 Pre-discovered Areas 2 | . . . 1 1 . . . . . . . . Known Exits Taken . | . . . . . . . . . . . . . Unknown Exits Taken 10 | 1 1 1 1 1 1 1 . . 1 1 1 . Scrap Searched 1 | . . 1 . . . . . . . . . . Spaces Dug 12 | . . . . . . 3 . . . 3 . 6 Terrain Destroyed 204 | . . . . . . 3 . . . 9 24 168 Melee 1 | . . . . . . . . . . 1 . . Projectile 96 | . . . . . . 3 . . . 8 24 61 AOE 107 | . . . . . . . . . . . . 107 Terrain Rammed . | . . . . . . . . . . . . . Walls Destroyed . | . . . . . . . . . . . . . Machines Disabled . | . . . . . . . . . . . . . Actions | -11 -10 -10 -10 -9 -8 -7 -6 -6 -6 -6 -6 -5 --------- Run | Scr Mat Min Exi Min Mat Fac Fac Was Fac Ext Cet Fac Total 9487 | 197 631 490 288 325 989 871 233 904 253 1409 635 2262 Wait 1269 | 110 38 31 . 20 353 150 52 28 36 121 106 224 Move 7260 | 66 540 439 275 281 526 672 135 832 211 1154 420 1709 Hop 17 | . . . . . 2 11 . 1 . . . 3 Pick Up 118 | 2 10 2 10 10 8 9 1 10 2 8 12 34 Fast Attach 57 | 1 4 . 1 2 10 6 . 7 . 3 5 18 Attach 45 | . . 1 . . 13 1 2 3 . . 3 22 Detach 8 | . . . . 1 3 . 1 . . . . 3 Swap 43 | . 3 1 . . 4 4 4 1 1 8 9 8 Drop 116 | 2 12 2 2 1 5 12 2 20 3 11 19 25 Fire 440 | 16 24 14 . 10 65 4 . 2 . 32 61 212 Melee 15 | . . . . . . 2 . . . 13 . . Ram 3 | . . . . . . . . . . . . 3 Kick . | . . . . . . . . . . . . . Crush . | . . . . . . . . . . . . . Escape Stasis 36 | . . . . . . . 36 . . . . . Rewire 59 | . . . . . . . . . . 58 . 1 Trap 1 | . . . . . . . . . . 1 . . Miscellaneous . | . . . . . . . . . . . . . Route ------- -11/Scrapyard -10/Materials (discovered 2 exits: [*Mat] / [*Min]) -10/Mines -10/Exiles -9/Mines -8/Materials (discovered 3 exits: *Fac x2 / Sto) -7/Factory -6/Factory -6/Waste -6/Factory -6/Extension (discovered 2 exits: *Fac / *Cet) -6/Cetus (discovered 2 exits: *Fac / [*Arc]) -5/Factory (discovered 1 exit: [*Fac]) History --------- Turn | Location | Event 1 | -11/Scrapyard | Discovered new exit (range 1) 237 | -11/Scrapyard | Entered Materials 318 | -10/Materials | Build established: Mutant 601 | -10/Materials | Discovered new exit (range 12) 676 | -10/Materials | Discovered new exit (range 13) 904 | -10/Materials | Entered Mines 904 | -10/Mines | Accompanied by 1 ally 1463 | -10/Mines | Deemed a non-threat by the Exiles lab entrance 1463 | -10/Mines | Discovered new exit (range 5) 1487 | -10/Mines | Entered Exiles 1487 | -10/Exiles | Accompanied by 2 allies 1514 | -10/Exiles | Met 8R-AWN 1517 | -10/Exiles | Led the pair of lost Derelicts to a safe place 1533 | -10/Exiles | Met EX-HEX 1569 | -10/Exiles | Met EX-BIN 1583 | -10/Exiles | Aligned with FarCom system 1584 | -10/Exiles | Given EX-Vault access code 1615 | -10/Exiles | Opened EX-Vault 1622 | -10/Exiles | Found Lightpack 2.0 1650 | -10/Exiles | Warned to stay clear of 0b10 Research branches 1670 | -10/Exiles | Met EX-DEC 1676 | -10/Exiles | Learned location of Zion (-7) 1717 | -10/Exiles | Discovered new exit (range 10) 1723 | -10/Exiles | Left Exiles lab with Lightpack 2.0 1723 | -10/Exiles | Entered Mines 1865 | -9/Mines | Discovered new exit (range 8) 1918 | -9/Mines | Lost 3 parts (1p2n) 1924 | -9/Mines | Build established: Hauler-Mutant 1929 | -9/Mines | Assisted by bots powering up and referring to "LRC-V3" 1934 | -9/Mines | Entered Materials 1934 | -8/Materials | Accompanied by 3 allies 1934 | -8/Materials | Evolved 4 slots: Propulsion x2, Utility x2 1935 | -8/Materials | Identified exit to Storage 2180 | -8/Materials | Lost 3 parts (1n2w) 2452 | -8/Materials | Discovered new exit (range 14) 2713 | -8/Materials | Lost 5 parts (2n1u2w) 2846 | -8/Materials | Discovered new exit (range 16) 2901 | -8/Materials | Entered Factory 2901 | -7/Factory | Evolved 2 slots: Utility x2 3172 | -7/Factory | Build established: Scavenger-Scout 3302 | -7/Factory | Discovered new exit (range 16) 3306 | -7/Factory | Entered another Factory area 3306 | -6/Factory | Evolved 2 slots: Power x1, Propulsion x1 3442 | -6/Factory | Sucked down chute 3442 | -6/Factory | Entered Waste 3443 | -6/Waste | Joined by Warlord forces that had cleared the area 3516 | -6/Waste | Discovered new exit (range 15) 3860 | -6/Waste | A Compactor rumbled back to life 3860 | -6/Waste | Spotted C-40 Crusher 3864 | -6/Waste | Allies destroyed C-40 Crusher 3910 | -6/Waste | Build established: Hauler-Mutant 4316 | -6/Waste | Entered Factory 4316 | -6/Factory | Accompanied by 12 allies 4683 | -6/Factory | Discovered new exit (range 6) 4694 | -6/Factory | Entered Extension 4694 | -6/Extension | Accompanied by 10 allies 4721 | -6/Extension | Disrupted transfer network 4913 | -6/Extension | Spotted B-75 Beast 4919 | -6/Extension | Allies destroyed B-75 Beast 4937 | -6/Extension | Spotted B-75 Beast 4943 | -6/Extension | Allies destroyed B-75 Beast 5968 | -6/Extension | Build established: Commander-Mutant 6068 | -6/Extension | Rescued a captive Derelict 6576 | -6/Extension | Discovered new exit (range 16) 6579 | -6/Extension | Discovered new exit (range 14) 6662 | -6/Extension | Rescued A7 6743 | -6/Extension | Rescued a captive Derelict 6743 | -6/Extension | Rescued a captive Derelict 6873 | -6/Extension | Entered Cetus 6873 | -6/Cetus | Accompanied by 9 allies (A7) 6878 | -6/Cetus | Acquired a Cetus Manufacturing Module code from A7 6895 | -6/Cetus | Spotted Cetus Guard 6895 | -6/Cetus | Spotted Cetus Guard 6897 | -6/Cetus | Spotted Cetus Guard 6898 | -6/Cetus | Spotted Cetus Guard 6907 | -6/Cetus | Allies destroyed Cetus Guard 6915 | -6/Cetus | Destroyed Cetus Guard 6929 | -6/Cetus | Allies destroyed Cetus Guard 6933 | -6/Cetus | Destroyed Cetus Guard 7047 | -6/Cetus | Cetus Manufacturing Module disabled 7142 | -6/Cetus | Failed to start Cetus Manufacturing Module 7248 | -6/Cetus | Build established: Scavenger-Mutant 7248 | -6/Cetus | Escorted A7 to Cetus Mainframe 7422 | -6/Cetus | Discovered new exit (range 15) 7483 | -6/Cetus | Spotted Cetus Guard 7483 | -6/Cetus | Spotted Cetus Guard 7515 | -6/Cetus | Destroyed Cetus Guard 7614 | -6/Cetus | Spotted Cetus Guard 7615 | -6/Cetus | Destroyed Cetus Guard 7634 | -6/Cetus | Extracted ID and sensor layout for unrecognized location from A7's data core 7638 | -6/Cetus | Spotted Cetus Guard 7649 | -6/Cetus | Destroyed Cetus Guard 7669 | -6/Cetus | Discovered new exit (range 16) 7686 | -6/Cetus | Met Revision 17 7875 | -6/Cetus | Entered Factory 7875 | -5/Factory | Evolved 2 slots: Propulsion x1, Weapon x1 8616 | -5/Factory | Spotted B-75 Beast 8754 | -5/Factory | Found Prototype Processor 8754 | -5/Factory | Identified Exp. Signal Interpreter 8978 | -5/Factory | Garrison activated, responded to threat 9245 | -5/Factory | Destroyed 11 combat bots 9418 | -5/Factory | System corruption reached 10% 9458 | -5/Factory | Lost 4 parts (1p1n1u1w) 9528 | -5/Factory | Destroyed 11 combat bots 9675 | -5/Factory | First assault squad dispatched 9941 | -5/Factory | Destroyed 9 combat bots 9945 | -5/Factory | Lost 4 parts (1n1u2w) 10248 | -5/Factory | Garrison activated, responded to threat 10353 | -5/Factory | Destroyed 8 combat bots 10738 | -5/Factory | High security lockdown imminent 10767 | -5/Factory | Lost 9 parts (1p5n2u1w) 10768 | -5/Factory | Core integrity fell below 50% 10807 | -5/Factory | Lost 3 parts (1p1u1w) 10818 | -5/Factory | High security lockdown engaged 10985 | -5/Factory | Core integrity fell below 20% 10995 | -5/Factory | Discovered new exit (range 14) 11004 | -5/Factory | Destroyed by Y-64 Sentinel with Wave Gun Last Messages --------------- 10973_ System corrupted: Matter fused (-6). 10975_ Acquired Lyr. Medium Armor Plating. 10976_ Dropped Lyr. Medium Armor Plating. 10977_ Dropped Lyr. Light Armor Plating. 10977_ Acquired Lyr. Medium Armor Plating. 10978_ Dropped Lyr. Light Armor Plating. 10978_ Acquired Lyr. Medium Armor Plating. 10984_ Fusion Modulator explodes. 10984_ Lightpack 2.0 destroyed. 10984_ Dropped Adv. Energy Well. 10985_ Acquired Lyr. Medium Armor Plating. 10987_ Acquired Lyr. Light Armor Plating. 10987_ Critical hit. 10995_ EXIT=FOUND 10996_ Cesium-ion Thruster destroyed. 10996_ Identified Hvy. Treads. 10996_ R-10 Processor exits level. 10997_ Penetrated by Slug. 11003_ Critical hit. 11003_ Penetrated by Slug. Map ----- +----------------------------------------------------+ | | | | | | | | | | | | | | | | | | | | | | | | | | | | | ?????????????????????????????????????????????????? | | ????????????????????????###########??????????????? | | ????????????????????????# ! #????#######???? | | ????????????????????????# ######"""""##### | | ????????????????????????# !! + | | ????????????????????????# ! #### "#?? | | ????????????????????????# """ #?#" "#? | | ????????????????????????# """ #?#" "# | | ????????????????????????# """ ###" /[ " | | ?????????????####+#?????#! ! # !! !] " | | ?????????????# ##########+### !*[][ ## | | ######+####### Y @ [!] | | Y * # | |